bitfinex-derivatives/quotes_ETHF0:USTF0_20240913
["timestamp","ask_amount","ask_price","bid_price","bid_amount"]
[1726189346263,0.42406,2358.0,2357.7,0.4241]
[1726189346464,2.98,2358.0,2357.8,0.4241]
[1726189347166,2.98,2358.0,2357.6,3.2078]
[1726189347361,2.98,2358.0,2357.8,0.42409]
[1726189349560,3.40406,2358.0,2357.7,0.4241]
[1726189349760,2.98,2358.0,2357.8,0.4241]
[1726189349969,4.66489,2357.9,2357.6,3.63193]
[1726189350263,0.785,2358.1,2357.5,0.42414]
[1726189350264,3.77671,2357.8,2357.5,0.42414]
[1726189350575,0.7649,2357.7,2357.5,0.42414]
[1726189350870,0.7649,2357.7,2357.4,0.4049]
[1726189350871,0.7649,2357.7,2357.6,0.42413]
[1726189351160,0.7649,2357.7,2357.5,0.42414]
[1726189351367,0.7649,2357.7,2357.6,0.42413]
[1726189352160,0.3726,2357.8,2357.7,0.42412]
[1726189356172,0.3874,2358.0,2357.8,0.42409]
[1726189356565,0.81147,2358.0,2357.8,0.42409]
[1726189356770,0.42408,2357.9,2357.7,0.42411]
[1726189357269,0.42408,2357.9,2357.6,0.42412]
[1726189357671,0.42408,2357.9,2357.4,3.6127]
[1726189357867,0.42408,2357.9,2357.7,0.42411]
[1726189358263,0.42408,2357.9,2357.4,3.6127]
[1726189358264,3.4041,2357.8,2357.5,0.42414]
[1726189358473,2.98,2357.6,2357.5,0.42414]
[1726189358866,3.386,2357.6,2357.5,0.42414]
[1726189359691,3.386,2357.6,2357.4,0.42416]
[1726189359890,3.386,2357.6,2357.5,0.42415]
[1726189360285,3.386,2357.6,2357.4,0.42416]
[1726189360787,3.386,2357.6,2357.3,0.3855]
[1726189360788,3.386,2357.6,2357.5,0.42415]
[1726189362982,3.81013,2357.6,2357.4,0.42416]
[1726189363177,3.81014,2357.6,2357.3,0.42419]
[1726189363582,0.42415,2357.5,2357.2,0.3782]
[1726189363780,3.40415,2357.5,2357.1,3.2078]
[1726189363984,3.40415,2357.5,2357.3,0.42419]
[1726189364284,3.40416,2357.5,2357.3,0.42419]
[1726189364686,2.98,2357.5,2357.3,0.42419]
[1726189365186,0.83013,2357.6,2357.4,0.42416]
[1726189365389,0.83013,2357.6,2357.3,0.42418]
[1726189366283,0.406,2357.6,2357.3,0.42418]
[1726189366484,0.83014,2357.6,2357.3,0.42418]
[1726189366880,0.83014,2357.6,2357.4,0.42417]
[1726189366881,0.406,2357.6,2357.4,0.42417]
[1726189367685,0.83014,2357.6,2357.4,0.42417]
[1726189367889,0.83014,2357.6,2357.1,3.2078]
[1726189367890,0.83014,2357.6,2357.3,0.42418]
[1726189368194,0.83015,2357.6,2357.4,0.42417]
[1726189369392,3.40415,2357.5,2357.3,0.42418]
[1726189369593,2.98,2357.5,2357.3,0.42418]
[1726189370994,3.40415,2357.5,2357.3,0.42418]
[1726189371389,3.40415,2357.5,2357.1,3.2078]
[1726189371695,0.42418,2357.4,2357.1,3.63201]
[1726189371896,0.7698,2357.3,2357.2,0.42421]
[1726189372189,3.7498,2357.3,2357.2,0.42421]
[1726189373096,3.3497,2357.5,2357.4,0.42417]
[1726189374486,3.77385,2357.5,2357.1,3.2078]
[1726189374789,3.77385,2357.5,2357.4,0.42417]
[1726189374790,3.3497,2357.5,2357.4,0.42417]
[1726189377998,3.77385,2357.5,2357.4,0.42417]
[1726189379402,3.3497,2357.5,2357.4,0.42417]
[1726189379796,0.3697,2357.5,2357.4,0.42417]
[1726189380103,4.0163,2357.6,2357.5,0.42415]
[1726189380104,0.406,2357.6,2357.5,0.42415]
[1726189380294,3.18721233,2357.7,2357.6,0.42413]
[1726189381291,3.18721233,2357.7,2357.3,1.06046]
[1726189381597,2.98,2357.4,2357.3,0.42419]
[1726189381790,3.40414,2357.6,2357.4,0.42416]
[1726189381995,2.98,2357.6,2357.4,0.42416]
[1726189382194,0.42415,2357.5,2357.4,0.42416]
[1726189382392,0.42415,2357.5,2357.3,0.42418]
[1726189382600,2.98,2357.6,2357.2,0.4242]
[1726189382601,4.54978,2357.4,2357.2,0.4242]
[1726189383598,4.1256,2357.4,2357.3,0.42419]
[1726189383901,1.1456,2357.4,2357.3,0.42419]
[1726189384313,2.98,2357.6,2357.5,0.42415]
[1726189384803,3.3549,2357.6,2357.5,0.42415]
[1726189385807,3.78851233,2357.7,2357.6,0.42413]
[1726189386113,0.58071233,2357.7,2357.6,0.42413]
[1726189386301,0.20721233,2357.7,2357.6,0.42413]
[1726189386604,2.98,2357.8,2357.7,0.42412]
[1726189386997,0.791,2357.9,2357.8,0.4241]
[1726189387200,1.21508,2357.9,2357.7,0.42411]
[1726189387504,0.791,2357.9,2357.7,0.42411]
[1726189388204,0.3994,2357.9,2357.8,0.4241]
[1726189389108,6.9498,2358.0,2357.9,0.42408]
[1726189390205,3.404,2358.4,2358.1,0.42403]
[1726189390409,0.7477,2358.2,2358.1,0.42403]
[1726189395002,4.15174,2358.2,2358.0,0.42405]
[1726189395202,0.42406,2358.0,2357.8,0.81399]
[1726189395406,3.7277,2358.2,2357.9,0.42407]
[1726189395407,0.42405,2358.1,2357.9,0.42407]
[1726189395803,0.3896,2358.0,2357.9,0.42407]
[1726189397412,0.42415,2357.5,2357.3,5.03035907]
[1726189397612,0.42415,2357.5,2357.1,1.65773861]
[1726189397613,0.21126999,2357.6,2357.1,0.4036]
[1726189397907,2.98,2357.6,2357.5,0.42415]
[1726189398211,3.19006067,2357.6,2357.5,0.42415]
[1726189398408,3.19006067,2357.6,2357.4,0.42416]
[1726189398604,3.58706067,2357.6,2357.4,0.42416]
[1726189399114,3.58706067,2357.6,2357.1,0.4036]
[1726189399115,3.40416,2357.5,2357.2,0.42419]
[1726189399301,0.7929,2357.4,2357.2,0.42419]
[1726189400200,0.7929,2357.4,2357.3,0.42419]
[1726189402114,0.7929,2357.4,2357.2,0.42419]
[1726189402305,1.21707,2357.4,2357.2,0.42419]
[1726189402503,0.7929,2357.4,2357.2,0.42419]
[1726189402913,0.7929,2357.4,2357.1,1.50875907]
[1726189402914,2.98,2357.5,2357.4,0.42417]
[1726189403212,1.38556067,2357.6,2357.4,0.42417]
[1726189403711,1.38556067,2357.6,2357.1,1.50875907]
[1726189403712,1.38556067,2357.6,2357.5,0.42415]
[1726189403907,1.80969067,2357.6,2357.4,0.42416]
[1726189404513,1.80969067,2357.6,2357.4,0.42417]
[1726189405520,0.42416,2357.5,2357.3,0.42417]
[1726189406020,1.38556067,2357.6,2357.3,0.42417]
[1726189406313,0.42416,2357.5,2357.3,0.42417]
[1726189406514,3.40418,2357.4,2357.2,0.4242]
[1726189407406,3.40418,2357.4,2356.9,1.52940907]
[1726189407407,0.42422,2357.1,2356.9,1.52940907]
[1726189407614,1.1722,2357.0,2356.9,0.42425]
[1726189407808,2.98,2357.3,2356.8,1.10515907]
[1726189408013,3.81039,2357.3,2357.1,0.42421]
[1726189408210,3.3862,2357.3,2357.2,0.42421]
[1726189409429,3.81039,2357.3,2357.1,0.42421]
[1726189409905,3.3862,2357.3,2357.1,0.42421]
[1726189410310,3.81039,2357.3,2357.1,0.42421]
[1726189410706,0.42422,2357.2,2357.0,0.42423]
[1726189411124,3.3862,2357.3,2356.9,1.2059]
[1726189411419,3.8104,2357.3,2357.0,0.42423]
[1726189411621,3.8104,2357.3,2357.1,0.42422]
[1726189411915,0.42421,2357.2,2357.0,0.42423]
[1726189412308,0.7793,2357.1,2357.0,0.42423]
[1726189412721,3.7593,2357.1,2357.0,0.42423]
[1726189413110,4.18353,2357.1,2356.9,0.42424]
[1726189413311,4.18353,2357.1,2356.7,1.51005907]
[1726189413312,3.7593,2357.1,2357.0,0.42424]
[1726189414119,4.18352,2357.1,2357.0,0.42424]
[1726189414316,4.18352,2357.1,2356.8,0.4041]
[1726189414621,4.18352,2357.1,2356.9,0.42426]
[1726189415117,3.7593,2357.1,2357.0,0.42424]
[1726189415313,4.18353,2357.1,2356.9,0.42425]
[1726189415515,3.7593,2357.1,2357.0,0.42424]
[1726189416817,4.18352,2357.1,2357.0,0.42424]
[1726189417614,3.7593,2357.1,2357.0,0.42424]
[1726189423623,4.18352,2357.1,2357.0,0.42424]
[1726189423825,3.7593,2357.1,2357.0,0.42424]
[1726189424827,3.3621,2357.1,2357.0,0.42424]
[1726189425029,3.7628,2357.3,2357.2,0.42421]
[1726189427326,3.7628,2357.3,2357.2,0.81171]
[1726189428929,3.3862,2357.3,2357.2,0.81171]
[1726189429131,3.5917,2357.5,2357.4,0.42417]
[1726189429132,0.7562,2357.5,2357.4,0.42417]
[1726189429434,3.19006067,2357.6,2357.5,0.42415]
[1726189430135,1.59006067,2357.6,2357.5,0.42415]
[1726189430433,2.01419067,2357.6,2357.4,0.42416]
[1726189430633,1.38,2357.5,2357.4,0.42416]
[1726189432229,2.98,2357.5,2357.4,0.42417]
[1726189432430,2.98,2357.5,2357.3,0.42419]
[1726189432638,0.7715,2357.4,2357.3,0.42419]
[1726189434529,0.7715,2357.4,2357.0,0.3901]
[1726189434829,0.42421,2357.2,2357.0,0.42423]
[1726189435640,0.42421,2357.2,2356.9,0.3864]
[1726189435836,0.42421,2357.2,2357.0,0.42423]
[1726189436334,7.4502,2357.1,2356.7,0.42429]
[1726189436538,2.98,2356.8,2356.3,1.1533]
[1726189436729,2.98,2356.6,2356.4,0.42434]
[1726189436928,0.4016,2356.7,2356.5,0.42433]
[1726189437135,0.4016,2356.7,2356.6,0.42431]
[1726189437434,4.19455,2357.0,2356.8,0.42427]
[1726189437633,0.42426,2356.9,2356.7,0.42428]
[1726189438349,4.58395,2357.0,2356.5,3.2078]
[1726189438642,0.42426,2356.9,2356.7,0.42429]
[1726189440342,4.1597,2357.0,2356.8,0.42428]
[1726189440841,4.1597,2357.0,2356.9,0.42426]
[1726189441036,1.1797,2357.0,2356.9,0.42426]
[1726189442128,1.1797,2357.0,2356.8,0.42427]
[1726189442439,1.1797,2357.0,2356.9,0.42426]
[1726189446836,1.60394,2357.0,2356.8,0.42427]
[1726189447040,3.40426,2356.9,2356.7,0.80708]
[1726189447238,2.98,2356.9,2356.7,0.3828]
[1726189447439,3.40426,2356.9,2356.7,0.80708]
[1726189447845,3.40426,2356.9,2356.7,0.42428]
[1726189449043,3.40426,2356.9,2356.7,0.42429]
[1726189449044,3.40427,2356.9,2356.7,0.42429]
[1726189449242,3.40427,2356.9,2356.6,1.10515907]
[1726189449243,0.42428,2356.8,2356.6,1.52945907]
[1726189449841,3.4043,2356.7,2356.5,4.73727907]
[1726189450043,0.8129,2356.6,2356.5,4.73727907]
[1726189450236,0.42435,2356.4,2356.3,1.10515907]
[1726189450437,0.42435,2356.4,2356.1,1.10515907]
[1726189450438,0.42439,2356.2,2356.1,1.10515907]
[1726189450635,0.42439,2356.2,2355.9,2.08216861]
[1726189450636,0.4244,2356.1,2355.9,1.10515907]
[1726189450839,2.98,2356.0,2355.9,1.10515907]
[1726189451152,7.2248,2356.0,2355.4,1.10515907]
[1726189451342,2.98,2355.7,2355.6,0.42449]
[1726189451544,3.2078,2355.9,2355.8,0.42446]
[1726189451545,2.98,2355.9,2355.8,0.42446]
[1726189452748,0.408,2356.1,2355.8,0.42446]
[1726189452749,2.98,2356.0,2355.8,0.42446]
[1726189452949,2.98,2356.0,2355.9,0.3689]
[1726189453368,2.98,2356.0,2355.9,0.79334]
[1726189454042,3.2078,2356.2,2356.1,0.4244]
[1726189455049,2.98,2356.2,2356.1,0.4244]
[1726189456348,6.61219,2356.2,2356.0,0.3957]
[1726189456651,3.40439,2356.2,2356.0,0.3957]
[1726189456845,3.40439,2356.2,2355.9,0.79333]
[1726189457049,2.98,2356.0,2355.9,0.79333]
[1726189457261,6.1878,2356.0,2355.6,3.2078]
[1726189457552,6.1878,2356.0,2355.8,0.42446]
[1726189457553,3.3853,2355.9,2355.8,0.42446]
[1726189458543,0.42447,2355.8,2355.6,0.42449]
[1726189458744,2.98,2355.7,2355.6,0.42449]
[1726189460243,0.42449,2355.6,2355.3,0.80883]
[1726189460545,2.98,2355.7,2355.3,0.42455]
[1726189460546,2.98,2355.4,2355.3,0.42455]
[1726189460742,2.98,2355.4,2355.2,4.01876]
[1726189460945,2.98,2355.4,2355.2,3.63236]
[1726189460946,3.40454,2355.4,2355.2,3.63236]
[1726189461145,0.42458,2355.2,2354.9,0.42462]
[1726189461351,2.98,2355.0,2354.7,0.3864]
[1726189461542,2.98,2355.0,2354.9,0.42462]
[1726189462050,2.98,2355.0,2354.9,4.67102]
[1726189462258,2.98,2355.0,2354.9,0.42462]
[1726189462644,4.04151,2355.0,2354.6,3.1078]
[1726189462844,2.98,2354.7,2354.0,3.2078]
[1726189463048,4.0099,2354.9,2354.2,0.42475]
[1726189463049,2.98,2354.3,2354.2,0.42475]
[1726189463248,2.98,2354.5,2354.4,0.42471]
[1726189463755,2.98,2354.7,2354.6,0.42467]
[1726189464153,2.98,2354.7,2354.3,3.2078]
[1726189464352,2.98,2354.7,2354.6,0.83007]
[1726189464758,2.98,2354.9,2354.8,0.42462]
[1726189465453,3.3864,2355.1,2355.0,0.4246]
[1726189465661,2.98,2355.1,2355.0,0.4246]
[1726189466652,2.98,2355.3,2354.9,3.2078]
[1726189466858,2.98,2355.3,2355.1,0.42457]
[1726189467156,2.98,2355.3,2355.2,0.42457]
[1726189468159,2.98,2355.3,2355.0,0.7682]
[1726189468354,2.98,2355.1,2355.0,0.7682]
[1726189468552,2.98,2355.1,2355.0,0.389]
[1726189468858,2.98,2355.1,2354.9,0.42461]
[1726189469045,2.98,2355.1,2354.7,3.2078]
[1726189469246,2.98,2355.1,2354.9,0.42461]
[1726189469653,2.98,2355.1,2355.0,0.4246]
[1726189469853,0.3966,2355.2,2355.1,0.42458]
[1726189470053,2.98,2355.3,2355.2,0.42455]
[1726189470653,0.3928,2355.7,2355.2,10.2456]
[1726189470860,3.3728,2355.7,2355.5,0.4245]
[1726189471056,3.3728,2355.7,2355.3,3.2078]
[1726189471258,3.3728,2355.7,2355.4,0.42452]
[1726189471858,3.3728,2355.7,2355.2,0.3928]
[1726189472255,3.3728,2355.7,2355.4,0.42452]
[1726189472458,3.3728,2355.7,2355.2,0.3928]
[1726189472459,2.98,2355.5,2355.3,0.42453]
[1726189473762,2.98,2355.5,2355.2,0.3928]
[1726189473763,2.98,2355.5,2355.2,0.81735]
[1726189473969,3.40452,2355.5,2355.2,0.3928]
[1726189474152,0.3704,2355.4,2355.2,0.3928]
[1726189474359,0.3704,2355.4,2355.2,0.81736]
[1726189474858,6.1878,2355.3,2355.0,3.9252]
[1726189475153,6.1878,2355.3,2354.9,0.42461]
[1726189475154,2.98,2355.1,2354.9,0.42461]
[1726189475758,2.98,2355.1,2354.7,1.22064]
[1726189476065,0.3704,2355.0,2354.7,1.22064]
[1726189476263,0.3704,2355.0,2354.8,0.42464]
[1726189477259,7.2264,2354.9,2354.3,3.9252]
[1726189477461,2.98,2354.7,2354.6,0.42466]
[1726189477756,2.98,2354.7,2354.1,3.9949]
[1726189477962,2.98,2354.7,2354.6,0.42467]
[1726189478364,2.98,2354.7,2354.4,0.42469]
[1726189478564,2.98,2354.5,2354.4,0.4247]
[1726189478963,2.98,2354.5,2354.3,0.42472]
[1726189479157,0.7889,2354.4,2354.2,0.42474]
[1726189479358,2.98,2354.3,2353.8,3.9252]
[1726189479666,2.98,2354.3,2353.5,0.3705]
[1726189479667,2.98,2353.9,2353.5,0.42487]
[1726189479867,4.248,2354.3,2354.2,0.42475]
[1726189479868,0.099,2354.3,2354.2,0.42475]
[1726189480062,0.2116347,2354.5,2354.4,0.42471]
[1726189480363,3.2078,2354.8,2353.9,3.2078]
[1726189480570,2.98,2354.6,2354.5,0.42468]
[1726189482168,7.65188,2354.6,2354.3,0.42472]
[1726189482464,7.65188,2354.6,2353.4,1.06219]
[1726189482465,2.98,2354.4,2354.1,0.3855]
[1726189482670,2.98,2354.4,2354.3,0.42473]
[1726189482859,2.98,2354.4,2354.1,0.3855]
[1726189483061,2.98,2354.4,2354.2,0.42474]
[1726189483265,3.3507,2354.4,2354.2,0.42474]
[1726189483864,3.3507,2354.4,2354.1,0.3855]
[1726189484062,3.3507,2354.4,2354.2,0.42474]
[1726189484759,3.3507,2354.4,2353.9,3.577]
[1726189485067,0.3853,2354.5,2354.4,0.42471]
[1726189485273,2.98,2354.6,2354.4,0.42471]
[1726189485767,2.98,2354.6,2354.3,0.3697]
[1726189486065,2.98,2354.6,2354.5,0.42469]
[1726189486569,2.98,2354.8,2354.7,0.42466]
[1726189486763,3.3669,2355.0,2354.8,0.42462]
[1726189487373,3.3669,2355.0,2354.6,3.2078]
[1726189487566,3.3669,2355.0,2354.9,0.42462]
[1726189487766,3.3669,2355.0,2354.6,3.2078]
[1726189487973,2.98,2354.7,2354.6,0.42467]
[1726189488663,2.98,2354.7,2354.3,0.3697]
[1726189488973,0.3969,2354.6,2354.5,0.42469]
[1726189489272,0.3969,2354.6,2354.4,0.4247]
[1726189489573,0.7703,2354.6,2354.4,0.4247]
[1726189490373,7.2272,2354.5,2354.1,3.2078]
[1726189490674,7.2272,2354.5,2353.4,10.6056]
[1726189490675,2.98,2354.2,2353.4,10.6056]
[1726189490884,2.98,2353.8,2353.7,0.42484]
[1726189492270,2.98,2353.8,2353.5,0.3688]
[1726189492875,2.98,2353.8,2353.7,0.42484]
[1726189494367,3.7382,2354.1,2353.9,0.42479]
[1726189494567,3.7382,2354.1,2353.6,3.2078]
[1726189494870,0.3734,2354.1,2354.0,0.42478]
[1726189496974,2.98,2354.3,2354.2,0.42475]
[1726189497568,3.6325,2354.5,2354.2,0.42475]
[1726189497766,2.98,2354.6,2354.2,3.2078]
[1726189497967,2.98,2354.6,2354.4,0.4247]
[1726189498174,3.40467,2354.6,2354.4,0.4247]
[1726189498393,4.2472,2354.5,2354.3,0.42472]
[1726189498679,2.98,2354.4,2354.3,0.42472]
[1726189500876,2.98,2354.4,2354.2,3.63254]
[1726189500877,3.40472,2354.4,2354.2,3.63254]
[1726189501179,3.40471,2354.4,2354.2,3.63254]
[1726189501677,3.40471,2354.4,2354.1,0.42476]
[1726189501678,0.42473,2354.3,2354.1,0.42476]
[1726189501876,2.98,2354.4,2354.3,0.42471]
[1726189502071,6.1878,2354.6,2354.5,0.42469]
[1726189502272,2.98,2354.8,2354.7,0.42466]
[1726189503172,2.98,2354.8,2354.6,0.42466]
[1726189503385,3.40465,2354.8,2354.5,0.81679]
[1726189503681,3.40467,2354.6,2354.4,0.42471]
[1726189503879,0.42472,2354.4,2354.1,4.7053]
[1726189504080,2.98,2354.2,2354.1,1.20485]
[1726189505270,2.98,2354.4,2354.2,0.42474]
[1726189506181,2.98,2354.4,2354.1,0.7801]
[1726189506182,2.98,2354.4,2354.3,0.42473]
[1726189506373,2.98,2354.4,2354.1,3.9879]
[1726189506374,3.2078,2354.6,2354.5,0.42469]
[1726189509189,3.2078,2354.6,2354.1,3.9879]
[1726189509190,0.4247,2354.5,2354.1,3.9879]
[1726189509492,3.7235,2354.5,2354.3,0.42472]
[1726189509682,4.14819,2354.5,2354.3,0.42472]
[1726189510282,3.7235,2354.5,2354.3,0.42472]
[1726189510689,4.14819,2354.5,2354.3,0.42472]
[1726189510985,3.7235,2354.5,2354.3,0.42472]
[1726189511680,3.7235,2354.5,2354.4,0.42471]
[1726189512190,3.7235,2354.5,2354.1,3.9879]
[1726189512392,3.3489,2354.5,2354.1,3.9879]
[1726189512785,3.77359,2354.5,2354.3,0.42472]
[1726189513396,3.77359,2354.5,2354.2,0.42474]
[1726189513789,2.98,2354.3,2354.1,3.2078]
[1726189513985,0.3858,2354.2,2354.1,3.2078]
[1726189514185,0.3858,2354.2,2354.1,3.63256]
[1726189515085,2.98,2354.3,2354.2,0.42475]
[1726189515286,0.7936,2354.5,2354.3,0.42472]
[1726189515287,3.7347,2354.5,2354.3,0.42472]
[1726189515488,4.1594,2354.5,2354.3,0.42472]
[1726189515684,0.42473,2354.3,2354.1,3.63256]
[1726189515890,2.98,2354.2,2354.1,3.63256]
[1726189516187,2.98,2354.2,2353.9,0.42479]
[1726189516395,0.3726,2354.1,2353.9,0.42479]
[1726189516605,0.3726,2354.1,2353.8,1.20111]
[1726189516897,0.42481,2353.9,2353.6,3.63265]
[1726189517097,0.42481,2353.9,2353.6,3.2078]
[1726189517098,2.98,2353.7,2353.6,3.2078]
[1726189517495,3.3661,2353.7,2353.6,3.2078]
[1726189517692,3.3661,2353.7,2353.4,1.20918]
[1726189518296,2.98,2353.5,2353.1,4.31295907]
[1726189518497,0.81095,2353.7,2353.1,4.31295907]
[1726189518498,2.98,2353.7,2353.5,0.42486]
[1726189518697,2.98,2353.7,2353.6,0.42485]
[1726189518892,0.4851,2354.2,2354.0,0.42478]
[1726189519098,0.5949451,2354.2,2354.1,0.83126]
[1726189519399,2.98,2354.3,2354.2,0.42475]
[1726189519799,2.98,2354.3,2354.2,0.4063]
[1726189520295,2.98,2354.3,2354.2,0.83105]
[1726189520696,2.98,2354.3,2354.2,0.4063]
[1726189521311,2.98,2354.3,2354.2,0.83105]
[1726189521508,2.98,2354.3,2354.2,0.4063]
[1726189524206,2.98,2354.3,2354.1,0.4065]
[1726189524412,2.98,2354.3,2353.9,1.10515907]
[1726189524413,7.4558,2354.2,2353.9,1.10515907]
[1726189524607,2.98,2354.0,2353.8,1.90667907]
[1726189524815,2.98,2354.0,2353.8,1.48185907]
[1726189525018,3.3883,2354.0,2353.8,1.10515907]
[1726189525311,3.3883,2354.0,2353.7,1.10515907]
[1726189525312,3.81309,2354.0,2353.7,1.10515907]
[1726189525503,3.63261,2353.9,2353.6,1.91395907]
[1726189525705,3.40482,2353.8,2353.6,1.10515907]
[1726189526409,3.40482,2353.8,2353.5,1.10515907]
[1726189526410,0.42484,2353.7,2353.5,1.10515907]
[1726189526602,0.42484,2353.7,2353.4,1.90663907]
[1726189526807,0.3933,2353.6,2353.4,1.90663907]
[1726189527210,3.79816,2353.6,2353.4,1.48175907]
[1726189527405,4.19786,2353.6,2353.4,1.48175907]
[1726189527607,4.19786,2353.6,2353.4,0.3766]
[1726189528206,2.98,2353.6,2353.4,0.80148]
[1726189528412,2.98,2353.6,2353.5,0.42487]
[1726189528616,3.3733,2353.8,2353.7,0.42484]
[1726189528815,2.98,2354.0,2353.8,0.42481]
[1726189529008,2.98,2354.0,2353.9,0.8054]
[1726189529206,3.40478,2354.0,2353.9,0.8054]
[1726189529409,0.4248,2353.9,2353.6,0.42484]
[1726189529616,3.40482,2353.8,2353.6,0.8054]
[1726189529817,3.81002,2353.8,2353.6,0.8054]
[1726189530011,0.4014,2353.7,2353.6,0.4012]
[1726189530918,0.4014,2353.7,2353.6,0.82605]
[1726189531106,0.4014,2353.7,2353.6,0.4012]
[1726189531313,3.3852,2353.8,2353.6,0.4012]
[1726189531814,2.98,2353.8,2353.7,0.42484]
[1726189532012,2.98,2353.8,2353.7,0.83034]
[1726189532515,3.2078,2353.9,2353.8,0.42482]
[1726189532817,3.2078,2353.9,2353.8,0.82752]
[1726189534208,3.2078,2353.9,2353.6,0.82604]
[1726189534515,2.98,2353.8,2353.7,0.42484]
[1726189535517,0.8263,2354.0,2353.9,0.4248]
[1726189535518,2.98,2354.0,2353.9,0.4248]
[1726189536921,2.98,2354.0,2353.8,0.42481]
[1726189537410,2.98,2354.0,2353.9,0.4248]
[1726189540115,2.98,2354.0,2353.8,0.42481]
[1726189540320,6.1878,2354.0,2353.8,0.42481]
[1726189540618,6.61259,2354.0,2353.7,0.4065]
[1726189540814,2.98,2353.8,2353.7,0.42484]
[1726189544425,3.40479,2354.0,2353.8,0.42481]
[1726189544621,3.40479,2354.0,2353.9,0.402]
[1726189544926,2.98,2354.0,2353.9,0.8268]
[1726189545119,3.2078,2354.1,2353.9,0.8268]
[1726189545322,3.2078,2354.1,2354.0,0.82088]
[1726189545617,0.61265885,2354.4,2354.3,0.42473]
[1726189545618,0.3961,2354.4,2354.3,0.42473]
[1726189545821,2.98,2354.5,2354.4,0.42471]
[1726189546215,2.98,2354.5,2354.1,3.2078]
[1726189546528,2.98,2354.5,2354.4,0.42471]
[1726189548027,2.98,2354.5,2354.1,3.2078]
[1726189548225,2.98,2354.5,2354.4,0.42471]
[1726189552632,2.98,2354.5,2354.1,4.31295907]
[1726189552819,0.3817,2354.4,2354.3,0.42471]
[1726189553026,3.3617,2354.4,2354.3,0.42471]
[1726189553528,3.3617,2354.4,2354.0,0.7808]
[1726189553728,3.3617,2354.4,2354.2,0.42475]
[1726189553924,2.98,2354.3,2354.2,0.42475]
[1726189560344,3.7634,2354.6,2354.2,4.248]
[1726189560632,3.7634,2354.6,2354.5,0.42469]
[1726189562326,4.18808,2354.6,2354.1,1.10515907]
[1726189562530,2.98,2354.4,2354.3,0.42473]
[1726189564336,2.98,2354.5,2354.4,0.4247]
[1726189571736,0.42473,2354.4,2354.1,4.01965]
[1726189571939,2.98,2354.3,2354.1,4.01965]
[1726189572141,2.98,2354.3,2354.1,3.2078]
[1726189572142,3.77913,2354.3,2354.1,3.2078]
[1726189572341,0.7434,2354.2,2354.1,0.42476]
[1726189574542,0.7434,2354.2,2354.0,0.82157]
[1726189574744,1.16815,2354.2,2354.0,0.42478]
[1726189574941,2.98,2354.1,2353.9,0.42479]
[1726189575140,2.98,2354.1,2354.0,0.42478]
[1726189576447,0.7434,2354.2,2353.8,0.3726]
[1726189576653,0.371,2354.2,2354.1,0.42476]
[1726189577059,0.3745,2354.4,2354.3,0.42473]
[1726189577245,0.7798,2354.4,2354.3,0.42473]
[1726189578548,0.7798,2354.4,2354.0,3.2078]
[1726189578549,8.2348,2354.4,2354.0,3.2078]
[1726189578854,2.98,2354.1,2354.0,3.63257]
[1726189581449,2.98,2354.1,2354.0,3.2078]
[1726189581652,2.98,2354.1,2354.0,3.63258]
[1726189583755,0.4092,2354.2,2354.1,0.42476]
[1726189583955,3.40474,2354.3,2354.1,0.42476]
[1726189584258,2.98,2354.3,2354.1,0.42475]
[1726189584553,3.40473,2354.3,2354.1,0.81335]
[1726189584751,2.98,2354.3,2354.2,0.42475]
[1726189585356,2.98,2354.3,2354.1,0.81335]
[1726189585947,2.98,2354.3,2354.2,0.42475]
[1726189586149,0.18071289,2354.6,2354.2,0.42475]
[1726189586150,3.4047,2354.5,2354.3,0.42472]
[1726189586550,7.6519,2354.5,2354.3,0.42472]
[1726189586746,8.0306,2354.5,2354.3,0.42472]
[1726189586947,8.4208,2354.5,2354.3,0.42472]
[1726189587856,7.455,2354.4,2354.0,4.31295907]
[1726189588156,0.42479,2354.0,2353.8,1.10515907]
[1726189588363,0.816,2353.9,2353.8,1.10515907]
[1726189588556,0.816,2353.9,2353.7,2.29738907]
[1726189588557,3.3712,2353.9,2353.7,2.29738907]
[1726189588763,3.3712,2353.9,2353.8,0.42482]
[1726189589056,3.3712,2353.9,2353.7,2.29738907]
[1726189589258,3.79601,2353.9,2353.7,1.87255907]
[1726189590160,3.79601,2353.9,2353.7,0.7674]
[1726189590453,3.79601,2353.9,2353.7,1.19223]
[1726189590655,3.3712,2353.9,2353.7,1.19223]
[1726189591358,3.796,2353.9,2353.7,1.19223]
[1726189591558,3.3712,2353.9,2353.7,1.19223]
[1726189591751,3.3712,2353.9,2353.8,0.42482]
[1726189591952,2.98,2354.0,2353.9,0.4248]
[1726189592159,2.98,2354.0,2353.8,0.42481]
[1726189592358,2.98,2354.0,2353.7,0.7674]
[1726189592359,0.8309,2353.9,2353.7,1.19223]
[1726189592566,2.98,2353.8,2353.7,0.7674]
[1726189592956,3.40483,2353.8,2353.6,0.42485]
[1726189593158,2.98,2353.7,2353.5,0.79846]
[1726189594471,3.40485,2353.7,2353.5,0.79846]